[Event "Early-Titled-Tuesday-Blitz-April-16-2024"]
[Site "Chess.com"]
[Date "2024.04.16"]
[Round "7"]
[White "Polish_fighter3000"]
[Black "temiksmozg"]
[Result "0-1"]
[WhiteElo "3126"]
[BlackElo "2684"]
[TimeControl "180+1"]
[EndTime "9:22:08 PDT"]
[Termination "temiksmozg won by resignation"]

1. e4 {[%clk 0:03:00.9]} 1... c5 {[%clk 0:02:59.6]} 2. Nf3 {[%clk 0:03:00.4]}
2... e6 {[%clk 0:02:59.6]} 3. d4 {[%clk 0:03:00]} 3... cxd4 {[%clk 0:03:00.5]}
4. Nxd4 {[%clk 0:03:00.4]} 4... Nf6 {[%clk 0:03:01.2]} 5. Nc3 {[%clk 0:02:59.3]}
5... Nc6 {[%clk 0:03:01.7]} 6. Nxc6 {[%clk 0:02:58.6]} 6... bxc6 {[%clk
0:03:02.6]} 7. e5 {[%clk 0:02:58.6]} 7... Nd5 {[%clk 0:03:03]} 8. Ne4 {[%clk
0:02:59.2]} 8... Qc7 {[%clk 0:03:03.5]} 9. f4 {[%clk 0:02:58.6]} 9... Qb6 {[%clk
0:03:04]} 10. c4 {[%clk 0:02:57.9]} 10... Bb4+ {[%clk 0:03:04.6]} 11. Ke2 {[%clk
0:02:58.1]} 11... Ba6 {[%clk 0:03:05.3]} 12. Kf3 {[%clk 0:02:56]} 12... f5
{[%clk 0:03:05.6]} 13. Nf2 {[%clk 0:02:53.8]} 13... Ne7 {[%clk 0:03:05.6]} 14.
Be3 {[%clk 0:02:48.7]} 14... Qb7 {[%clk 0:03:00.8]} 15. Qa4 {[%clk 0:02:35.5]}
15... g5 {[%clk 0:01:51.1]} 16. fxg5 {[%clk 0:02:22.8]} 16... Ng6 {[%clk
0:01:46.7]} 17. Nd3 {[%clk 0:02:16.8]} 17... c5+ {[%clk 0:01:11.9]} 18. Kf2
{[%clk 0:02:06.1]} 18... Bxc4 {[%clk 0:01:11.6]} 19. Nxb4 {[%clk 0:01:56.8]}
19... Bxf1 {[%clk 0:01:11]} 20. Rhxf1 {[%clk 0:01:54.7]} 20... Qxb4 {[%clk
0:00:50]} 21. Qc2 {[%clk 0:01:55]} 21... Nxe5 {[%clk 0:00:38.9]} 22. Kg1 {[%clk
0:01:55.4]} 22... d6 {[%clk 0:00:39.1]} 23. Rad1 {[%clk 0:01:51.4]} 23... Ke7
{[%clk 0:00:37.3]} 24. Rf4 {[%clk 0:01:39.8]} 24... Qb7 {[%clk 0:00:31.2]} 25.
b4 {[%clk 0:01:40.1]} 25... cxb4 {[%clk 0:00:26.6]} 26. Qd2 {[%clk 0:01:37.5]}
26... Rhd8 {[%clk 0:00:21.1]} 27. Rxb4 {[%clk 0:01:36.5]} 27... Qa6 {[%clk
0:00:17.2]} 28. g6 {[%clk 0:01:23.6]} 28... hxg6 {[%clk 0:00:15.7]} 29. Bg5+
{[%clk 0:01:24]} 29... Kf7 {[%clk 0:00:16.2]} 30. Bxd8 {[%clk 0:01:24.5]} 30...
Rxd8 {[%clk 0:00:15.9]} 31. Qh6 {[%clk 0:01:25.1]} 31... Qc6 {[%clk 0:00:09.5]}
32. Qh7+ {[%clk 0:01:23.6]} 32... Kf6 {[%clk 0:00:09.5]} 33. Qh4+ {[%clk
0:00:52.2]} 33... g5 {[%clk 0:00:09.5]} 34. Qh6+ {[%clk 0:00:28.4]} 34... Ng6
{[%clk 0:00:09.1]} 35. Rg4 {[%clk 0:00:27.3]} 35... Qc5+ {[%clk 0:00:04.1]} 36.
Kh1 {[%clk 0:00:27.4]} 36... fxg4 {[%clk 0:00:02.1]} 37. Rf1+ {[%clk 0:00:26.6]}
37... Qf5 {[%clk 0:00:02.7]} 38. Rxf5+ {[%clk 0:00:25.9]} 38... exf5 {[%clk
0:00:03.6]} 39. Qh7 {[%clk 0:00:25.6]} 39... d5 {[%clk 0:00:04.1]} 40. Qxa7
{[%clk 0:00:20.9]} 40... Rd6 {[%clk 0:00:04.3]} 41. Qd4+ {[%clk 0:00:20.7]}
41... Ne5 {[%clk 0:00:04.6]} 42. Kg1 {[%clk 0:00:18.4]} 42... Ke6 {[%clk
0:00:04.9]} 43. a4 {[%clk 0:00:17]} 43... Nc6 {[%clk 0:00:04.9]} 44. Qe3+ {[%clk
0:00:16.7]} 44... Ne5 {[%clk 0:00:03.8]} 45. a5 {[%clk 0:00:10.8]} 45... d4
{[%clk 0:00:03.1]} 46. Qb3+ {[%clk 0:00:11.1]} 46... Kf6 {[%clk 0:00:02.7]} 47.
Qb4 {[%clk 0:00:09.9]} 47... Ke6 {[%clk 0:00:02.8]} 48. Qb3+ {[%clk 0:00:10.2]}
48... Kf6 {[%clk 0:00:03]} 49. Qa3 {[%clk 0:00:09.9]} 49... Ke6 {[%clk
0:00:02.6]} 50. a6 {[%clk 0:00:10.1]} 50... d3 {[%clk 0:00:03]} 51. a7 {[%clk
0:00:09.9]} 51... d2 {[%clk 0:00:03.5]} 52. Qb3+ {[%clk 0:00:10.1]} 52... Kf6
{[%clk 0:00:03.6]} 53. Qd1 {[%clk 0:00:10.2]} 53... Rd8 {[%clk 0:00:03.1]} 54.
Kf2 {[%clk 0:00:05.6]} 54... Nc4 {[%clk 0:00:02.1]} 55. Qa1+ {[%clk 0:00:04.4]}
55... Kg6 {[%clk 0:00:02.4]} 56. Ke2 {[%clk 0:00:02.5]} 56... Re8+ {[%clk
0:00:02.5]} 57. Kd3 {[%clk 0:00:02.5]} 57... d1=Q+ {[%clk 0:00:02.1]} 58. Qxd1
{[%clk 0:00:02]} 58... Nb2+ {[%clk 0:00:02.5]} 0-1

[Event "Early-Titled-Tuesday-Blitz-April-16-2024"]
[Site "Chess.com"]
[Date "2024.04.16"]
[Round "7"]
[White "kachsona"]
[Black "Kirill_Klukin"]
[Result "0-1"]
[WhiteElo "2617"]
[BlackElo "2828"]
[TimeControl "180+1"]
[EndTime "9:22:11 PDT"]
[Termination "Kirill_Klukin won on time"]

1. e4 {[%clk 0:03:00.9]} 1... c5 {[%clk 0:02:59.3]} 2. Nf3 {[%clk 0:03:00.8]}
2... Nc6 {[%clk 0:02:58.1]} 3. Bb5 {[%clk 0:02:59.1]} 3... g6 {[%clk 0:02:58.3]}
4. O-O {[%clk 0:02:57.5]} 4... Bg7 {[%clk 0:02:56.9]} 5. c3 {[%clk 0:02:57.6]}
5... Nf6 {[%clk 0:02:56.3]} 6. Re1 {[%clk 0:02:56.2]} 6... O-O {[%clk
0:02:56.5]} 7. d4 {[%clk 0:02:56.6]} 7... d5 {[%clk 0:02:56.7]} 8. e5 {[%clk
0:02:51.4]} 8... Ne4 {[%clk 0:02:57.2]} 9. Bxc6 {[%clk 0:02:51.1]} 9... bxc6
{[%clk 0:02:58.1]} 10. Be3 {[%clk 0:02:51.1]} 10... cxd4 {[%clk 0:02:54.4]} 11.
cxd4 {[%clk 0:02:51]} 11... Qb6 {[%clk 0:02:41.9]} 12. Qc2 {[%clk 0:02:35.7]}
12... Bf5 {[%clk 0:02:16.6]} 13. Nh4 {[%clk 0:02:35.3]} 13... Nd6 {[%clk
0:02:17]} 14. Qe2 {[%clk 0:02:28.1]} 14... Nc4 {[%clk 0:02:12.8]} 15. Nxf5
{[%clk 0:02:27.1]} 15... gxf5 {[%clk 0:02:13.2]} 16. b3 {[%clk 0:02:25.8]} 16...
Nxe3 {[%clk 0:02:10.9]} 17. fxe3 {[%clk 0:02:25.6]} 17... c5 {[%clk 0:02:02.9]}
18. Qd3 {[%clk 0:02:21.9]} 18... e6 {[%clk 0:02:01.1]} 19. Nd2 {[%clk 0:02:19]}
19... cxd4 {[%clk 0:01:51.8]} 20. exd4 {[%clk 0:02:18.4]} 20... Rfc8 {[%clk
0:01:52.3]} 21. Kf1 {[%clk 0:02:10.4]} 21... Rc6 {[%clk 0:01:46.5]} 22. Rec1
{[%clk 0:02:08.3]} 22... Rac8 {[%clk 0:01:46.2]} 23. Rxc6 {[%clk 0:02:04.9]}
23... Rxc6 {[%clk 0:01:46.3]} 24. a3 {[%clk 0:01:57.2]} 24... Qc7 {[%clk
0:01:42.7]} 25. Re1 {[%clk 0:01:18.6]} 25... Rc3 {[%clk 0:01:38.2]} 26. Qb5
{[%clk 0:01:17]} 26... Bh6 {[%clk 0:01:36.3]} 27. Nf3 {[%clk 0:01:03.4]} 27...
Rc2 {[%clk 0:01:19.7]} 28. h4 {[%clk 0:00:48.9]} 28... Qc3 {[%clk 0:01:10.3]}
29. Qe8+ {[%clk 0:00:42.6]} 29... Kg7 {[%clk 0:01:10.2]} 30. Qe7 {[%clk
0:00:42.1]} 30... Qd3+ {[%clk 0:00:35.4]} 31. Kg1 {[%clk 0:00:41.6]} 31... Be3+
{[%clk 0:00:35.8]} 32. Kh1 {[%clk 0:00:40.4]} 32... Rc8 {[%clk 0:00:33.9]} 33.
h5 {[%clk 0:00:32.2]} 33... h6 {[%clk 0:00:33.3]} 34. Qxa7 {[%clk 0:00:18.7]}
34... Bf2 {[%clk 0:00:23.3]} 35. Ra1 {[%clk 0:00:10.1]} 35... Qxb3 {[%clk
0:00:10.7]} 36. Qe7 {[%clk 0:00:08.6]} 36... Be3 {[%clk 0:00:11.3]} 37. Qf6+
{[%clk 0:00:07.4]} 37... Kg8 {[%clk 0:00:11.1]} 38. Qh4 {[%clk 0:00:07.4]} 38...
Qc3 {[%clk 0:00:09.3]} 39. Qg3+ {[%clk 0:00:06]} 39... Kh7 {[%clk 0:00:09.2]}
40. Qe1 {[%clk 0:00:05.7]} 40... Qd3 {[%clk 0:00:07.6]} 41. a4 {[%clk
0:00:03.8]} 41... Rg8 {[%clk 0:00:07.5]} 42. a5 {[%clk 0:00:03.4]} 42... Qc2
{[%clk 0:00:05.2]} 43. Qf1 {[%clk 0:00:03.7]} 43... Qb2 {[%clk 0:00:03.6]} 44.
a6 {[%clk 0:00:03.7]} 44... Bxd4 {[%clk 0:00:04.4]} 45. Rb1 {[%clk 0:00:03.2]}
45... Qc3 {[%clk 0:00:03.9]} 46. Rc1 {[%clk 0:00:03]} 46... Qe3 {[%clk 0:00:04]}
47. Re1 {[%clk 0:00:02.3]} 47... Qf2 {[%clk 0:00:04.5]} 48. Qxf2 {[%clk
0:00:02.1]} 48... Bxf2 {[%clk 0:00:05.4]} 49. Re2 {[%clk 0:00:02.7]} 49... Bg3
{[%clk 0:00:02.6]} 50. Ra2 {[%clk 0:00:02.5]} 50... Ra8 {[%clk 0:00:03.1]} 51.
a7 {[%clk 0:00:02.7]} 51... Kg7 {[%clk 0:00:03.4]} 52. Nd4 {[%clk 0:00:03]}
52... Bxe5 {[%clk 0:00:02.8]} 53. Nb5 {[%clk 0:00:03.2]} 53... Kf8 {[%clk
0:00:02.7]} 54. Ra6 {[%clk 0:00:03.2]} 54... Ke7 {[%clk 0:00:03.1]} 55. Rb6
{[%clk 0:00:03.5]} 55... Kd7 {[%clk 0:00:03.4]} 56. Rb7+ {[%clk 0:00:01.7]}
56... Kc6 {[%clk 0:00:03.7]} 0-1

[Event "Early-Titled-Tuesday-Blitz-April-16-2024"]
[Site "Chess.com"]
[Date "2024.04.16"]
[Round "7"]
[White "UK_23"]
[Black "viktorskliarov"]
[Result "1/2-1/2"]
[WhiteElo "2486"]
[BlackElo "2613"]
[TimeControl "180+1"]
[EndTime "9:22:14 PDT"]
[Termination "Game drawn - insufficient material"]

1. e4 {[%clk 0:03:00.9]} 1... c5 {[%clk 0:02:59.8]} 2. Nf3 {[%clk 0:03:01.1]}
2... Nc6 {[%clk 0:03:00.1]} 3. Bb5 {[%clk 0:03:00.8]} 3... e6 {[%clk 0:03:00.1]}
4. Bxc6 {[%clk 0:02:57.1]} 4... bxc6 {[%clk 0:02:58.3]} 5. d3 {[%clk 0:02:57.7]}
5... Ne7 {[%clk 0:02:58.3]} 6. h4 {[%clk 0:02:57.5]} 6... h5 {[%clk 0:02:58.2]}
7. e5 {[%clk 0:02:55.4]} 7... Ng6 {[%clk 0:02:57.6]} 8. g3 {[%clk 0:02:54]} 8...
f6 {[%clk 0:02:51.9]} 9. Qe2 {[%clk 0:02:51.3]} 9... Nxe5 {[%clk 0:02:40.3]} 10.
Nxe5 {[%clk 0:02:50.8]} 10... fxe5 {[%clk 0:02:40.7]} 11. Qxe5 {[%clk
0:02:45.8]} 11... Qf6 {[%clk 0:02:40.1]} 12. Qe2 {[%clk 0:02:39.2]} 12... d6
{[%clk 0:02:34.6]} 13. Nc3 {[%clk 0:02:39.1]} 13... e5 {[%clk 0:02:23.5]} 14.
Bg5 {[%clk 0:02:37.2]} 14... Qe6 {[%clk 0:01:53.4]} 15. O-O-O {[%clk 0:02:29.5]}
15... Be7 {[%clk 0:01:51.8]} 16. Bxe7 {[%clk 0:02:23.4]} 16... Qxe7 {[%clk
0:01:51.2]} 17. Rde1 {[%clk 0:02:16.7]} 17... Rh6 {[%clk 0:01:19]} 18. f4 {[%clk
0:01:57.1]} 18... Bg4 {[%clk 0:01:18.1]} 19. Qe4 {[%clk 0:01:54.4]} 19... d5
{[%clk 0:01:04.4]} 20. Qa4 {[%clk 0:01:21.3]} 20... Qd6 {[%clk 0:00:26.7]} 21.
Rxe5+ {[%clk 0:01:18.8]} 21... Kf8 {[%clk 0:00:27.1]} 22. Rhe1 {[%clk
0:01:16.6]} 22... Re6 {[%clk 0:00:23.1]} 23. Rxe6 {[%clk 0:01:09.7]} 23... Bxe6
{[%clk 0:00:22.9]} 24. Re5 {[%clk 0:01:09.9]} 24... Bf7 {[%clk 0:00:22.5]} 25.
Qa3 {[%clk 0:01:00.8]} 25... g6 {[%clk 0:00:08.8]} 26. d4 {[%clk 0:00:59.4]}
26... Kg7 {[%clk 0:00:07.5]} 27. Qxc5 {[%clk 0:00:58]} 27... Qf6 {[%clk
0:00:07.7]} 28. Nd1 {[%clk 0:00:46.5]} 28... a5 {[%clk 0:00:06.8]} 29. Ne3
{[%clk 0:00:46.6]} 29... a4 {[%clk 0:00:06.9]} 30. a3 {[%clk 0:00:46.8]} 30...
Rb8 {[%clk 0:00:06.8]} 31. Qe7 {[%clk 0:00:43.5]} 31... Rb5 {[%clk 0:00:03.7]}
32. Qxf6+ {[%clk 0:00:41.4]} 32... Kxf6 {[%clk 0:00:04.6]} 33. c3 {[%clk
0:00:41.7]} 33... Be6 {[%clk 0:00:05.1]} 34. Kc2 {[%clk 0:00:36.2]} 34... Rb6
{[%clk 0:00:05.4]} 35. Nd1 {[%clk 0:00:25.9]} 35... Rb8 {[%clk 0:00:05.9]} 36.
Re3 {[%clk 0:00:23.9]} 36... Bf5+ {[%clk 0:00:05.9]} 37. Kc1 {[%clk 0:00:24]}
37... Be4 {[%clk 0:00:06.3]} 38. Nf2 {[%clk 0:00:23.9]} 38... Kf5 {[%clk
0:00:06.8]} 39. Nxe4 {[%clk 0:00:16.7]} 39... dxe4 {[%clk 0:00:07.1]} 40. Kc2
{[%clk 0:00:17.1]} 40... Rb3 {[%clk 0:00:06.8]} 41. Re2 {[%clk 0:00:15.8]} 41...
Rb8 {[%clk 0:00:05.1]} 42. Kc1 {[%clk 0:00:12]} 42... Rb3 {[%clk 0:00:05.2]} 43.
Kd1 {[%clk 0:00:12.2]} 43... Rb7 {[%clk 0:00:05]} 44. Ke1 {[%clk 0:00:12.7]}
44... Rb3 {[%clk 0:00:05.2]} 45. Kf2 {[%clk 0:00:13.3]} 45... Rb7 {[%clk
0:00:05.5]} 46. Ke3 {[%clk 0:00:13.9]} 46... Rb3 {[%clk 0:00:05.8]} 47. Rc2
{[%clk 0:00:14.1]} 47... Rb7 {[%clk 0:00:05.8]} 48. c4 {[%clk 0:00:12.9]} 48...
Rb3+ {[%clk 0:00:06.3]} 49. Rc3 {[%clk 0:00:12.8]} 49... Rxb2 {[%clk 0:00:06.4]}
50. d5 {[%clk 0:00:13.4]} 50... cxd5 {[%clk 0:00:06.8]} 51. cxd5 {[%clk
0:00:14.3]} 51... Rd2 {[%clk 0:00:07.2]} 52. Rc5 {[%clk 0:00:13.6]} 52... Rd3+
{[%clk 0:00:07.4]} 53. Ke2 {[%clk 0:00:14.2]} 53... Kg4 {[%clk 0:00:07.4]} 54.
Rc6 {[%clk 0:00:12.2]} 54... Kxg3 {[%clk 0:00:07.1]} 55. Rxg6+ {[%clk
0:00:12.5]} 55... Kxf4 {[%clk 0:00:07.7]} 56. d6 {[%clk 0:00:12.9]} 56... Rxa3
{[%clk 0:00:07.4]} 57. Rg5 {[%clk 0:00:11.7]} 57... Ra2+ {[%clk 0:00:07.2]} 58.
Ke1 {[%clk 0:00:12.1]} 58... Ke3 {[%clk 0:00:07]} 59. Rg3+ {[%clk 0:00:11.6]}
59... Kf4 {[%clk 0:00:07.5]} 60. Rg5 {[%clk 0:00:12.5]} 60... Ra3 {[%clk
0:00:06.7]} 61. Rxh5 {[%clk 0:00:12.5]} 61... Rd3 {[%clk 0:00:07.3]} 62. Ra5
{[%clk 0:00:12.4]} 62... a3 {[%clk 0:00:07.8]} 63. Ke2 {[%clk 0:00:12.3]} 63...
Rxd6 {[%clk 0:00:07.3]} 64. Rxa3 {[%clk 0:00:12.1]} 64... Rh6 {[%clk 0:00:07.9]}
65. Rh3 {[%clk 0:00:12.2]} 65... Kg4 {[%clk 0:00:08.4]} 66. Re3 {[%clk
0:00:12.2]} 66... Rxh4 {[%clk 0:00:08.9]} 67. Rxe4+ {[%clk 0:00:12.5]} 67... Kg5
{[%clk 0:00:09.6]} 68. Rxh4 {[%clk 0:00:13.4]} 68... Kxh4 {[%clk 0:00:10.3]}
1/2-1/2

[Event "Early-Titled-Tuesday-Blitz-April-16-2024"]
[Site "Chess.com"]
[Date "2024.04.16"]
[Round "7"]
[White "dianamirza"]
[Black "Alenzer"]
[Result "1/2-1/2"]
[WhiteElo "1950"]
[BlackElo "2203"]
[TimeControl "180+1"]
[EndTime "9:22:16 PDT"]
[Termination "Game drawn - insufficient material"]

1. b4 {[%clk 0:02:24]} 1... e5 {[%clk 0:02:58.9]} 2. Bb2 {[%clk 0:02:23.8]} 2...
d6 {[%clk 0:02:51.5]} 3. e3 {[%clk 0:02:20.5]} 3... Nf6 {[%clk 0:02:51.4]} 4. c4
{[%clk 0:02:20.8]} 4... Be7 {[%clk 0:02:50.7]} 5. d4 {[%clk 0:02:21.3]} 5...
exd4 {[%clk 0:02:49.3]} 6. exd4 {[%clk 0:02:21.6]} 6... d5 {[%clk 0:02:48.6]} 7.
c5 {[%clk 0:02:21.2]} 7... O-O {[%clk 0:02:48]} 8. Nf3 {[%clk 0:02:21.3]} 8...
Bg4 {[%clk 0:02:42.8]} 9. Be2 {[%clk 0:02:21.8]} 9... Ne4 {[%clk 0:02:42.4]} 10.
O-O {[%clk 0:02:21.1]} 10... b6 {[%clk 0:02:39.9]} 11. h3 {[%clk 0:02:21.2]}
11... Bh5 {[%clk 0:02:39.9]} 12. g4 {[%clk 0:02:19.4]} 12... Bg6 {[%clk
0:02:39.8]} 13. Ne5 {[%clk 0:02:20.1]} 13... bxc5 {[%clk 0:02:37.7]} 14. Nxg6
{[%clk 0:02:19.7]} 14... fxg6 {[%clk 0:02:36.5]} 15. dxc5 {[%clk 0:02:20.4]}
15... Bh4 {[%clk 0:02:32.6]} 16. Bd4 {[%clk 0:02:11.7]} 16... Nc6 {[%clk
0:02:30.1]} 17. Be3 {[%clk 0:02:08]} 17... d4 {[%clk 0:02:26.5]} 18. Bc4+ {[%clk
0:02:01.6]} 18... Kh8 {[%clk 0:02:26.1]} 19. Qd3 {[%clk 0:01:51.7]} 19... dxe3
{[%clk 0:02:10.2]} 20. Qxe4 {[%clk 0:01:46.9]} 20... exf2+ {[%clk 0:02:05.6]}
21. Kg2 {[%clk 0:01:43.6]} 21... Qe8 {[%clk 0:01:41.7]} 22. Bd5 {[%clk
0:01:26.5]} 22... Qxe4+ {[%clk 0:01:31.1]} 23. Bxe4 {[%clk 0:01:27.4]} 23... Rf6
{[%clk 0:01:31.4]} 24. b5 {[%clk 0:01:24.5]} 24... Re8 {[%clk 0:01:24.9]} 25.
Bxc6 {[%clk 0:01:22.3]} 25... Re1 {[%clk 0:01:25.3]} 26. Nc3 {[%clk 0:01:22]}
26... Rfe6 {[%clk 0:01:17.8]} 27. Ne4 {[%clk 0:00:47.6]} 27... R1xe4 {[%clk
0:01:01.9]} 28. Bxe4 {[%clk 0:00:48.5]} 28... Rxe4 {[%clk 0:01:02.4]} 29. Rad1
{[%clk 0:00:46.7]} 29... h5 {[%clk 0:00:59.1]} 30. gxh5 {[%clk 0:00:43.9]} 30...
gxh5 {[%clk 0:00:58.2]} 31. Rd7 {[%clk 0:00:40.6]} 31... Rb4 {[%clk 0:00:49.2]}
32. Rd8+ {[%clk 0:00:28.4]} 32... Kh7 {[%clk 0:00:48.7]} 33. Rb8 {[%clk
0:00:29.1]} 33... Ra4 {[%clk 0:00:39.5]} 34. Rb7 {[%clk 0:00:26.8]} 34... Rxa2
{[%clk 0:00:35.4]} 35. Rxc7 {[%clk 0:00:19]} 35... Ra3 {[%clk 0:00:35.3]} 36.
Rxf2 {[%clk 0:00:12.8]} 36... Bxf2 {[%clk 0:00:32.3]} 37. Kxf2 {[%clk
0:00:13.7]} 37... Rc3 {[%clk 0:00:19.6]} 38. c6 {[%clk 0:00:12.8]} 38... Rc5
{[%clk 0:00:17.3]} 39. Rxa7 {[%clk 0:00:10.5]} 39... Rxb5 {[%clk 0:00:17.8]} 40.
c7 {[%clk 0:00:10.7]} 40... Rc5 {[%clk 0:00:18.4]} 41. Kg3 {[%clk 0:00:11]}
41... Rc4 {[%clk 0:00:17.8]} 42. Kf3 {[%clk 0:00:10.7]} 42... Kh6 {[%clk
0:00:15.6]} 43. Ke3 {[%clk 0:00:11.1]} 43... g6 {[%clk 0:00:13.6]} 44. Kd3
{[%clk 0:00:11.3]} 44... Rc1 {[%clk 0:00:13.9]} 45. Kd4 {[%clk 0:00:11.3]} 45...
Kg5 {[%clk 0:00:13.8]} 46. Kd5 {[%clk 0:00:11.7]} 46... Kh4 {[%clk 0:00:11.1]}
47. Kd6 {[%clk 0:00:12.2]} 47... Kxh3 {[%clk 0:00:09.7]} 48. Ra5 {[%clk
0:00:07.7]} 48... Rxc7 {[%clk 0:00:05.1]} 49. Kxc7 {[%clk 0:00:08.6]} 49... h4
{[%clk 0:00:02.9]} 50. Kd6 {[%clk 0:00:08.2]} 50... Kg3 {[%clk 0:00:02.5]} 51.
Ra3+ {[%clk 0:00:04.6]} 51... Kg2 {[%clk 0:00:02.4]} 52. Ra2+ {[%clk 0:00:03.3]}
52... Kg3 {[%clk 0:00:02.4]} 53. Ke5 {[%clk 0:00:01.8]} 53... h3 {[%clk
0:00:02.4]} 54. Kf6 {[%clk 0:00:02.2]} 54... h2 {[%clk 0:00:02]} 55. Ra1 {[%clk
0:00:02.3]} 55... Kg2 {[%clk 0:00:01.9]} 56. Ra2+ {[%clk 0:00:03]} 56... Kg1
{[%clk 0:00:02]} 57. Rxh2 {[%clk 0:00:03.9]} 57... Kxh2 {[%clk 0:00:02.3]} 58.
Kxg6 {[%clk 0:00:04.8]} 1/2-1/2

[Event "Early-Titled-Tuesday-Blitz-April-16-2024"]
[Site "Chess.com"]
[Date "2024.04.16"]
[Round "7"]
[White "MdSharifHossain"]
[Black "stratacticos"]
[Result "1/2-1/2"]
[WhiteElo "2273"]
[BlackElo "1884"]
[TimeControl "180+1"]
[EndTime "9:22:21 PDT"]
[Termination "Game drawn - insufficient material"]

1. e4 {[%clk 0:02:59.1]} 1... c5 {[%clk 0:02:59.1]} 2. Nf3 {[%clk 0:02:58.2]}
2... Nc6 {[%clk 0:02:58.6]} 3. Bb5 {[%clk 0:02:56.9]} 3... Na5 {[%clk
0:02:57.7]} 4. O-O {[%clk 0:02:46.9]} 4... a6 {[%clk 0:02:57.2]} 5. Be2 {[%clk
0:02:42.8]} 5... Nc6 {[%clk 0:02:54.2]} 6. c3 {[%clk 0:02:40.6]} 6... Nf6 {[%clk
0:02:52.4]} 7. e5 {[%clk 0:02:39.2]} 7... Nd5 {[%clk 0:02:51.7]} 8. d4 {[%clk
0:02:32.3]} 8... cxd4 {[%clk 0:02:50.1]} 9. cxd4 {[%clk 0:02:30.3]} 9... g6
{[%clk 0:02:49.7]} 10. Nc3 {[%clk 0:02:25.7]} 10... Nxc3 {[%clk 0:02:48.9]} 11.
bxc3 {[%clk 0:02:25.5]} 11... Bg7 {[%clk 0:02:49.8]} 12. a4 {[%clk 0:02:20.8]}
12... O-O {[%clk 0:02:48.2]} 13. Rb1 {[%clk 0:02:20.5]} 13... d6 {[%clk
0:02:40.6]} 14. Bf4 {[%clk 0:02:08.9]} 14... dxe5 {[%clk 0:02:38.2]} 15. Nxe5
{[%clk 0:02:07.8]} 15... Nxe5 {[%clk 0:02:37.7]} 16. Bxe5 {[%clk 0:02:03.9]}
16... Bxe5 {[%clk 0:02:36.4]} 17. dxe5 {[%clk 0:02:03.8]} 17... Qc7 {[%clk
0:02:36.1]} 18. Qd4 {[%clk 0:01:57.9]} 18... Rd8 {[%clk 0:02:28.5]} 19. Qe3
{[%clk 0:01:57.7]} 19... Be6 {[%clk 0:02:21.3]} 20. Bf3 {[%clk 0:01:56.4]} 20...
Bd5 {[%clk 0:02:19.7]} 21. h3 {[%clk 0:01:37.1]} 21... Rab8 {[%clk 0:02:00]} 22.
Rfe1 {[%clk 0:01:31.4]} 22... Bxf3 {[%clk 0:01:52.2]} 23. Qxf3 {[%clk 0:01:31]}
23... b5 {[%clk 0:01:52.1]} 24. axb5 {[%clk 0:01:23.9]} 24... Rxb5 {[%clk
0:01:51]} 25. Rxb5 {[%clk 0:01:22.6]} 25... axb5 {[%clk 0:01:50.8]} 26. g3
{[%clk 0:01:18.6]} 26... Qd7 {[%clk 0:01:37]} 27. Re3 {[%clk 0:01:13.5]} 27...
Qxh3 {[%clk 0:01:34.6]} 28. e6 {[%clk 0:01:04.3]} 28... f5 {[%clk 0:01:15.5]}
29. Re1 {[%clk 0:01:00.1]} 29... Qg4 {[%clk 0:01:11.6]} 30. Qxg4 {[%clk
0:00:57.4]} 30... fxg4 {[%clk 0:01:11]} 31. Re5 {[%clk 0:00:56]} 31... Rd3
{[%clk 0:01:03.5]} 32. Rc5 {[%clk 0:00:55.5]} 32... Rd6 {[%clk 0:00:58.8]} 33.
Re5 {[%clk 0:00:50.7]} 33... Kg7 {[%clk 0:00:58]} 34. Kf1 {[%clk 0:00:47.7]}
34... Kf6 {[%clk 0:00:57]} 35. Rxb5 {[%clk 0:00:47.6]} 35... Rxe6 {[%clk
0:00:55.9]} 36. Rc5 {[%clk 0:00:44.2]} 36... h5 {[%clk 0:00:53.5]} 37. Rc8
{[%clk 0:00:33.1]} 37... g5 {[%clk 0:00:47.6]} 38. Rh8 {[%clk 0:00:28.9]} 38...
Kg6 {[%clk 0:00:43.3]} 39. Rg8+ {[%clk 0:00:29]} 39... Kf6 {[%clk 0:00:42.5]}
40. Rh8 {[%clk 0:00:28.8]} 40... Kg6 {[%clk 0:00:42]} 41. Rg8+ {[%clk
0:00:28.9]} 41... Kf6 {[%clk 0:00:40.4]} 42. Rc8 {[%clk 0:00:28.6]} 42... h4
{[%clk 0:00:39.3]} 43. gxh4 {[%clk 0:00:19.2]} 43... gxh4 {[%clk 0:00:38.9]} 44.
c4 {[%clk 0:00:16.9]} 44... h3 {[%clk 0:00:27.1]} 45. Kg1 {[%clk 0:00:16]} 45...
Re2 {[%clk 0:00:19.5]} 46. c5 {[%clk 0:00:09.9]} 46... h2+ {[%clk 0:00:17.7]}
47. Kxh2 {[%clk 0:00:08.7]} 47... Rxf2+ {[%clk 0:00:17.2]} 48. Kg3 {[%clk
0:00:09.1]} 48... Rc2 {[%clk 0:00:16]} 49. Kxg4 {[%clk 0:00:09]} 49... Ke6
{[%clk 0:00:15.9]} 50. Kf4 {[%clk 0:00:08.6]} 50... Kd5 {[%clk 0:00:14.9]} 51.
Re8 {[%clk 0:00:06.3]} 51... Rxc5 {[%clk 0:00:13]} 52. Rxe7 {[%clk 0:00:05.7]}
52... Rc4+ {[%clk 0:00:12.9]} 53. Kf5 {[%clk 0:00:05.6]} 53... Kd6 {[%clk
0:00:13]} 54. Re6+ {[%clk 0:00:05.6]} 54... Kd7 {[%clk 0:00:12.5]} 55. Re5
{[%clk 0:00:06.1]} 55... Kd6 {[%clk 0:00:12]} 56. Re6+ {[%clk 0:00:06.1]} 56...
Kd7 {[%clk 0:00:12.1]} 57. Re4 {[%clk 0:00:06.4]} 57... Rxe4 {[%clk 0:00:11.3]}
58. Kxe4 {[%clk 0:00:07.3]} 1/2-1/2